Workbook

Sheet CAPA
A4: 1. | B4: Quando marcar o inbox aparecer apenas o quadro correspondente abaixo?
B5: Exemplo, marcado B aparece apenas o B, marcado B e E, aparece os dois e assim por diante...
B8: Empresa A | C8: Jan | D8: Fev | E8: Mar | F8: Abr | G8: Mai | H8: Jun | I8: Jul | J8: Ago | K8: Set | L8: Out | M8: Nov | N8: Dez | O8: Total
B9: PE
B10: PB
B11: RN
B14: Empresa B | C14: Jan | D14: Fev | E14: Mar | F14: Abr | G14: Mai | H14: Jun | I14: Jul | J14: Ago | K14: Set | L14: Out | M14: Nov | N14: Dez | O14: Total
B15: SP
B16: RJ
B17: MG
B19: Empresa C | C19: Jan | D19: Fev | E19: Mar | F19: Abr | G19: Mai | H19: Jun | I19: Jul | J19: Ago | K19: Set | L19: Out | M19: Nov | N19: Dez | O19: Total
B20: PR | O20: =SUM(C20:N20) -> 0
B21: SC | O21: =SUM(C21:N21) -> 0
B22: RS | O22: 0
B24: Empresa D | C24: Jan | D24: Fev | E24: Mar | F24: Abr | G24: Mai | H24: Jun | I24: Jul | J24: Ago | K24: Set | L24: Out | M24: Nov | N24: Dez | O24: Total
B25: AM | O25: =SUM(C25:N25) -> 0
B26: PA | O26: =SUM(C26:N26) -> 0
B27: AC | O27: 0
B29: Empresa E | C29: Jan | D29: Fev | E29: Mar | F29: Abr | G29: Mai | H29: Jun | I29: Jul | J29: Ago | K29: Set | L29: Out | M29: Nov | N29: Dez | O29: Total
B30: GO | O30: =SUM(C30:N30) -> 0
B31: MS | O31: =SUM(C31:N31) -> 0
B32: DF | O32: 0

Sheet Empresa A
B4: Empresa A | C4: Jan | D4: Fev | E4: Mar | F4: Abr | G4: Mai | H4: Jun | I4: Jul | J4: Ago | K4: Set | L4: Out | M4: Nov | N4: Dez | O4: Total
B5: PE | C5: 10 | D5: =C5*2 -> 20 | E5: =D5*2 -> 40 | F5: 80 | G5: 160 | H5: 320 | I5: 640 | J5: 1280 | K5: 2560 | L5: 5120 | M5: 10240 | N5: 20480 | O5: =SUM(C5:N5) -> 40950
B6: PB | C6: 20 | D6: =C6*2 -> 40 | E6: 80 | F6: 160 | G6: 320 | H6: 640 | I6: 1280 | J6: 2560 | K6: 5120 | L6: 10240 | M6: 20480 | N6: 40960 | O6: =SUM(C6:N6) -> 81900
B7: RN | C7: 30 | D7: =C7*2 -> 60 | E7: 120 | F7: 240 | G7: 480 | H7: 960 | I7: 1920 | J7: 3840 | K7: 7680 | L7: 15360 | M7: 30720 | N7: 61440 | O7: 122850

Sheet Empresa B
B3: Empresa B | C3: Jan | D3: Fev | E3: Mar | F3: Abr | G3: Mai | H3: Jun | I3: Jul | J3: Ago | K3: Set | L3: Out | M3: Nov | N3: Dez | O3: Jan
B4: SP | C4: 40 | D4: =C4*2 -> 80 | E4: =D4*2 -> 160 | F4: 320 | G4: 640 | H4: 1280 | I4: 2560 | J4: 5120 | K4: 10240 | L4: 20480 | M4: 40960 | N4: 81920 | O4: =SUM(C4:N4) -> 163800
B5: RJ | C5: 50 | D5: =C5*2 -> 100 | E5: 200 | F5: 400 | G5: 800 | H5: 1600 | I5: 3200 | J5: 6400 | K5: 12800 | L5: 25600 | M5: 51200 | N5: 102400 | O5: =SUM(C5:N5) -> 204750
B6: MG | C6: 60 | D6: =C6*2 -> 120 | E6: 240 | F6: 480 | G6: 960 | H6: 1920 | I6: 3840 | J6: 7680 | K6: 15360 | L6: 30720 | M6: 61440 | N6: 122880 | O6: 245700

Sheet Empresa C
B3: Empresa C | C3: Jan | D3: Fev | E3: Mar | F3: Abr | G3: Mai | H3: Jun | I3: Jul | J3: Ago | K3: Set | L3: Out | M3: Nov | N3: Dez | O3: Jan
B4: PR | C4: 70 | D4: =C4*2 -> 140 | E4: =D4*2 -> 280 | F4: 560 | G4: 1120 | H4: 2240 | I4: 4480 | J4: 8960 | K4: 17920 | L4: 35840 | M4: 71680 | N4: 143360 | O4: =SUM(C4:N4) -> 286650
B5: SC | C5: 80 | D5: =C5*2 -> 160 | E5: 320 | F5: 640 | G5: 1280 | H5: 2560 | I5: 5120 | J5: 10240 | K5: 20480 | L5: 40960 | M5: 81920 | N5: 163840 | O5: =SUM(C5:N5) -> 327600
B6: RS | C6: 90 | D6: 180 | E6: 360 | F6: 720 | G6: 1440 | H6: 2880 | I6: 5760 | J6: 11520 | K6: 23040 | L6: 46080 | M6: 92160 | N6: 184320 | O6: 368550

Sheet Empresa D
B3: Empresa D | C3: Jan | D3: Fev | E3: Mar | F3: Abr | G3: Mai | H3: Jun | I3: Jul | J3: Ago | K3: Set | L3: Out | M3: Nov | N3: Dez | O3: Jan
B4: AM | C4: 100 | D4: =C4*2 -> 200 | E4: =D4*2 -> 400 | F4: 800 | G4: 1600 | H4: 3200 | I4: 6400 | J4: 12800 | K4: 25600 | L4: 51200 | M4: 102400 | N4: 204800 | O4: =SUM(C4:N4) -> 409500
B5: PA | C5: 200 | D5: =C5*2 -> 400 | E5: 800 | F5: 1600 | G5: 3200 | H5: 6400 | I5: 12800 | J5: 25600 | K5: 51200 | L5: 102400 | M5: 204800 | N5: 409600 | O5: =SUM(C5:N5) -> 819000
B6: AC | C6: 300 | D6: 600 | E6: 1200 | F6: 2400 | G6: 4800 | H6: 9600 | I6: 19200 | J6: 38400 | K6: 76800 | L6: 153600 | M6: 307200 | N6: 614400 | O6: 1228500

Sheet Empresa E
B3: Empresa E | C3: Jan | D3: Fev | E3: Mar | F3: Abr | G3: Mai | H3: Jun | I3: Jul | J3: Ago | K3: Set | L3: Out | M3: Nov | N3: Dez | O3: Jan
B4: GO | C4: 400 | D4: =C4*2 -> 800 | E4: =D4*2 -> 1600 | F4: 3200 | G4: 6400 | H4: 12800 | I4: 25600 | J4: 51200 | K4: 102400 | L4: 204800 | M4: 409600 | N4: 819200 | O4: =SUM(C4:N4) -> 1638000
B5: MS | C5: 500 | D5: =C5*2 -> 1000 | E5: 2000 | F5: 4000 | G5: 8000 | H5: 16000 | I5: 32000 | J5: 64000 | K5: 128000 | L5: 256000 | M5: 512000 | N5: 1024000 | O5: =SUM(C5:N5) -> 2047500
B6: DF | C6: 600 | D6: 1200 | E6: 2400 | F6: 4800 | G6: 9600 | H6: 19200 | I6: 38400 | J6: 76800 | K6: 153600 | L6: 307200 | M6: 614400 | N6: 1228800 | O6: 2457000
